bitfinex-derivatives/quotes_BNBF0:USTF0_20250509
["timestamp","ask_amount","ask_price","bid_price","bid_amount"]
[1746789840057,0.26029251,642.39,641.02,0.31200274]
[1746789840662,0.26029251,642.42,641.02,0.31200274]
[1746789841659,0.26029251,642.42,641.02,0.88000274]
[1746789842659,0.26029251,642.41,641.02,0.88000274]
[1746789842955,0.26029251,642.4,641.02,0.88000274]
[1746789843355,0.26029251,642.39,641.02,0.88000274]
[1746789843759,0.26029251,642.38,641.02,0.88000274]
[1746789844162,0.26029251,642.37,641.02,1.55600274]
[1746789844661,2.03512279,643.68,641.02,1.55600274]
[1746789844662,0.53151805,642.36,641.02,1.55600274]
[1746789844960,0.26029251,642.35,641.02,1.55600274]
[1746789845359,0.26029251,642.34,641.02,1.55600274]
[1746789845661,0.26029251,642.33,641.02,1.55600274]
[1746789845955,0.26029251,642.32,641.02,1.55600274]
[1746789846460,0.26029251,642.31,641.02,1.55600274]
[1746789846858,0.26029251,642.3,641.02,1.55600274]
[1746789847059,0.26029251,642.29,641.02,1.55600274]
[1746789847258,0.26029251,642.28,641.02,1.55600274]
[1746789847465,0.53155082,642.28,641.02,1.55600274]
[1746789847659,0.26029251,642.27,641.02,1.55600274]
[1746789848362,0.26029251,642.26,641.02,1.55600274]
[1746789848664,0.26029251,642.25,641.02,1.55600274]
[1746789848963,0.26029251,642.24,641.02,1.55600274]
[1746789849258,0.26029251,642.23,641.02,1.55600274]
[1746789849658,0.26029251,642.22,641.02,1.55600274]
[1746789849958,0.26029251,642.21,641.02,1.55600274]
[1746789850462,0.26029251,642.2,641.02,1.55600274]
[1746789850660,0.26029251,642.19,641.02,1.55600274]
[1746789851060,0.26029251,642.18,641.02,1.55600274]
[1746789851262,0.26029251,642.18,641.02,2.16800274]
[1746789851563,0.26029251,642.17,641.02,2.16800274]
[1746789851860,0.26029251,642.19,641.02,2.16800274]
[1746789852266,0.27123188,642.2,641.02,2.16800274]
[1746789853164,0.26030653,642.19,641.02,2.16800274]
[1746789856561,0.26030653,643.19,641.02,2.16800274]
[1746789856765,0.27116425,642.18,641.02,2.16800274]
[1746789856962,0.26030653,643.18,641.02,2.16800274]
[1746789857159,2.03512279,643.23,641.02,2.16800274]
[1746789857160,0.26030653,642.17,641.02,2.16800274]
[1746789857466,0.27116425,642.17,641.02,2.16800274]
[1746789857965,0.26030653,642.16,641.02,2.16800274]
[1746789858169,0.26030653,642.16,641.02,2.64600274]
[1746789858865,0.26030653,642.16,641.03,0.31198164]
[1746789859062,0.27116425,642.17,641.02,2.64600274]
[1746789859368,0.26024147,642.16,641.03,0.31194029]
[1746789859567,0.26024147,642.16,641.04,0.31194029]
[1746789859868,0.26024147,642.16,641.05,0.31194029]
[1746789860069,0.26024147,642.16,641.06,0.31194029]
[1746789860266,0.26024147,642.16,641.07,0.31194029]
[1746789860462,0.26024147,642.16,641.08,0.31194029]
[1746789860663,0.26024147,642.16,641.09,0.31194029]
[1746789860865,0.26024147,642.16,641.1,0.31194029]
[1746789861064,0.26024147,642.16,641.11,0.31194029]
[1746789861269,0.26024147,642.16,641.12,0.31194029]
[1746789861469,0.26024147,642.16,641.13,0.31192637]
[1746789861674,0.26024147,642.16,641.02,2.64600274]
[1746789861872,0.26024147,642.16,641.03,0.31195533]
[1746789862064,0.26024147,642.16,641.04,0.31195533]
[1746789862265,0.26024147,642.16,641.05,0.31195533]
[1746789862465,0.26024147,642.16,641.02,2.64600274]
[1746789862665,0.26024147,642.16,641.03,0.31196285]
[1746789862868,0.26024147,642.16,641.04,0.31196285]
[1746789863065,0.26024147,642.16,641.05,0.31196285]
[1746789863272,0.26024147,642.16,641.06,0.31195939]
[1746789863467,0.26024147,642.16,641.02,2.64600274]
[1746789863671,0.26024147,642.16,641.03,0.31195688]
[1746789863871,0.26024147,642.16,641.04,0.31195688]
[1746789864072,0.26024147,642.16,641.05,0.31195688]
[1746789864367,0.26024147,642.16,641.06,0.31195688]
[1746789864571,0.26024147,642.16,641.02,2.64600274]
[1746789864772,0.26024147,642.16,641.03,0.31195937]
[1746789864973,0.26024147,642.16,641.04,0.62395238]
[1746789865173,0.26024147,642.16,641.05,0.31195937]
[1746789865670,0.27113256,642.15,641.07,0.31197841]
[1746789866174,0.26024147,642.14,641.07,0.31197841]
[1746789866667,0.27113256,642.15,641.07,0.31197841]
[1746789867075,0.26028689,642.14,641.07,0.31197841]
[1746789868676,0.27116742,642.13,641.07,0.31197841]
[1746789869276,0.26028689,642.12,641.07,0.31197841]
[1746789869779,0.26028689,642.11,641.07,0.31197841]
[1746789870277,0.26028689,642.12,641.07,0.31197841]
[1746789870778,0.26028689,642.11,641.07,0.31197841]
[1746789871072,0.26028689,642.12,641.07,0.31197841]
[1746789871477,0.2711875,642.11,641.07,0.31197841]
[1746789871772,0.26028689,642.1,641.07,0.31197841]
[1746789874573,0.27122871,642.09,641.07,0.31197841]
[1746789874974,0.26028689,642.08,641.07,0.31197841]
[1746789877178,0.26028689,642.08,641.08,0.543]
[1746789877379,0.26028689,642.08,641.08,1.02]
[1746789878384,0.26028689,642.08,641.09,0.554]
[1746789879981,0.26028689,642.08,641.11,0.31195894]
[1746789880677,0.27122026,642.07,641.11,0.31195894]
[1746789881081,0.26028689,642.06,641.11,0.31195894]
[1746789892093,0.26028689,642.06,641.12,0.3119453]
[1746789892295,0.26028689,642.06,641.13,0.311938]
[1746789892489,0.26028689,642.06,641.14,0.311938]
[1746789892692,0.27107765,642.05,641.15,0.311938]
[1746789892888,0.27107765,642.05,641.11,0.31195894]
[1746789893090,0.26028689,642.04,641.12,0.31193491]
[1746789893292,0.26028689,642.04,641.13,0.31193491]
[1746789893596,0.26028689,642.04,641.15,0.31193948]
[1746789894694,0.26028689,642.04,641.16,0.31191807]
[1746789894894,0.26028689,642.04,641.17,0.31191807]
[1746789895193,0.26028689,642.04,641.18,0.31191807]
[1746789895394,0.26028689,642.04,641.15,0.31193948]
[1746789895591,0.27111461,642.03,641.15,0.31193948]
[1746789896094,0.26028689,642.02,641.15,0.31193948]
[1746789896292,0.26028689,642.02,641.15,0.95293948]
[1746789900595,0.26028689,642.02,641.15,1.69393948]
[1746789902596,0.26028689,642.02,641.16,0.31195079]
[1746789902795,0.26028689,642.02,641.18,0.31192488]
[1746789903396,0.26028689,642.02,641.18,0.78892488]
[1746789904095,0.26028689,642.02,641.19,0.31193321]
[1746789904297,0.26028689,642.02,641.2,0.31193321]
[1746789904497,0.26028689,642.02,641.21,0.31193321]
[1746789904791,0.26028689,642.02,641.22,0.31193321]
[1746789904996,0.26028689,642.02,641.23,0.31193321]
[1746789905297,0.26028689,642.02,641.18,0.78892488]
[1746789905493,0.26028689,642.02,641.19,0.31191848]
[1746789905698,0.26028689,642.02,641.18,0.78892488]
[1746789908502,0.27111461,642.03,641.18,0.78892488]
[1746789908802,0.26026055,642.02,641.18,0.78892488]
[1746789912002,0.26026055,642.02,641.18,1.41092488]
[1746789913105,0.27111461,642.03,641.18,1.41092488]
[1746789913301,2.03512279,642.91,641.18,1.41092488]
[1746789913504,0.26025889,642.02,641.2,0.31191515]
[1746789913905,0.26025889,642.74,641.2,0.31191515]
[1746789914306,0.26025889,642.73,641.2,0.31191515]
[1746789914604,0.26025889,642.72,641.2,0.31191515]
[1746789914904,0.26025889,642.71,641.2,0.31191515]
[1746789915306,0.26025889,642.7,641.2,0.31191515]
[1746789915500,2.03512279,642.69,641.2,0.31191515]
[1746789915703,2.29538168,642.69,641.2,0.31191515]
[1746789916509,0.26025889,642.68,641.2,0.31191515]
[1746789916701,0.53143899,642.68,641.2,0.31191515]
[1746789916905,0.26025889,642.67,641.2,0.31191515]
[1746789917207,0.26025889,642.66,641.2,0.31191515]
[1746789917607,0.26025889,642.65,641.2,0.31191515]
[1746789918008,0.26025889,642.64,641.2,0.31191515]
[1746789918403,0.26025889,642.63,641.2,0.31191515]
[1746789918809,2.03512279,642.61,641.2,0.31191515]
[1746789919314,0.26025889,642.6,641.2,0.31191515]
[1746789919711,0.26025889,642.59,641.2,0.31191515]
[1746789920010,0.26025889,642.58,641.2,0.31191515]
[1746789920312,2.03512279,642.51,641.2,0.31191515]
[1746789920706,0.26025889,642.5,641.2,0.31191515]
[1746789921006,0.26025889,642.49,641.2,0.31191515]
[1746789921310,0.26025889,642.48,641.2,0.31191515]
[1746789921706,0.26025889,642.47,641.2,0.31191515]
[1746789922215,0.26025889,642.46,641.2,0.31191515]
[1746789922610,0.26025889,642.5,641.2,0.31191515]
[1746789923511,0.26025889,642.59,641.2,0.31191515]
[1746789923812,2.03512279,642.6,641.2,0.31191515]
[1746789924111,0.26034441,642.59,641.2,0.31191515]
[1746789925013,0.26034441,642.58,641.2,0.31191515]
[1746789925509,0.26034441,642.57,641.2,0.31191515]
[1746789925714,0.53157841,642.57,641.2,0.31191515]
[1746789925914,0.26034441,642.56,641.2,0.31191515]
[1746789926311,0.26034441,642.55,641.2,0.31191515]
[1746789926613,0.26034441,642.56,641.2,0.31191515]
[1746789926813,0.26034441,642.56,641.21,0.476]
[1746789927112,0.26034441,642.55,641.21,0.476]
[1746789927514,0.26034441,642.54,641.21,0.476]
[1746789927812,0.26034441,642.56,641.21,0.476]
[1746789928416,0.26034441,642.55,641.21,0.476]
[1746789928616,0.27119384,642.55,641.21,0.476]
[1746789928914,0.26039666,642.54,641.21,0.476]
[1746789929517,0.26039666,642.53,641.21,0.476]
[1746789929915,0.26039666,642.52,641.21,0.476]
[1746789930213,0.26039666,642.51,641.21,0.476]
[1746789930617,0.26039666,642.5,641.21,0.476]
[1746789930816,0.26039666,642.5,641.22,0.697]
[1746789931017,0.26039666,642.49,641.22,0.697]
[1746789931316,0.26039666,642.48,641.22,0.697]
[1746789931718,2.03512279,642.47,641.22,0.697]
[1746789932012,2.29551945,642.47,641.22,0.697]
[1746789932322,0.26039666,642.46,641.22,0.697]
[1746789932718,2.03512279,642.47,641.22,0.697]
[1746789933018,0.2604584,642.46,641.22,0.697]
[1746789933520,0.2604584,642.45,641.22,0.697]
[1746789934018,0.2604584,642.44,641.22,0.697]
[1746789934218,0.2604584,642.44,641.23,0.675]
[1746789934418,0.2604584,642.43,641.23,0.675]
[1746789934618,0.2604584,642.42,641.23,0.675]
[1746789935020,0.2604584,642.41,641.23,0.675]
[1746789935221,0.27124985,642.43,641.23,0.675]
[1746789935722,0.26039589,642.42,641.23,0.675]
[1746789935916,0.26039589,642.41,641.23,0.675]
[1746789936224,0.26039589,642.41,641.25,0.31189083]
[1746789936423,0.26039589,642.4,641.25,0.31189083]
[1746789936619,0.26039589,642.39,641.25,0.31189083]
[1746789936923,0.26039589,642.38,641.25,0.31189083]
[1746789937320,0.26039589,642.37,641.25,0.31189083]
[1746789937523,0.53164786,642.37,641.25,0.31189083]
[1746789937823,0.26039589,642.36,641.25,0.31189083]
[1746789938325,0.26039589,642.35,641.25,0.31189083]
[1746789938725,0.26039589,642.34,641.25,0.31189083]
[1746789939224,0.26039589,642.33,641.25,0.31189083]
[1746789939723,0.26039589,642.32,641.25,0.31189083]
[1746789939925,0.26039589,642.36,641.25,0.31189083]
[1746789940327,0.26039589,642.35,641.25,0.31189083]
[1746789940722,0.26039589,642.34,641.25,0.31189083]
[1746789941127,0.26039589,642.33,641.25,0.31189083]
[1746789941421,0.26039589,642.32,641.25,0.31189083]
[1746789941827,0.26039589,642.31,641.25,0.31189083]
[1746789942328,0.27125197,642.37,641.25,0.31189083]
[1746789942627,0.26056939,642.36,641.25,0.31189083]
[1746789943130,0.26056939,642.35,641.25,0.31189083]
[1746789943527,0.26056939,642.34,641.25,0.31189083]
[1746789943828,0.26056939,642.33,641.25,0.31189083]
[1746789944225,0.26056939,642.32,641.25,0.31189083]
[1746789944729,0.26056939,642.31,641.25,0.31189083]
[1746789945028,0.26056939,642.3,641.25,0.31189083]
[1746789945330,0.26056939,642.29,641.25,0.31189083]
[1746789945529,2.03512279,642.24,641.25,0.31189083]
[1746789945928,0.26056939,642.23,641.25,0.31189083]
[1746789946229,0.26056939,642.22,641.23,0.675]
[1746789946529,0.53198426,642.22,641.23,0.675]
[1746789946828,0.26056939,642.21,641.23,0.675]
[1746789947325,0.26056939,642.2,641.23,0.675]
[1746789947625,0.26056939,642.19,641.23,0.675]
[1746789947929,0.26056939,642.18,641.23,0.675]
[1746789948332,0.26056939,642.17,641.23,0.675]
[1746789948529,0.26056939,642.16,641.23,0.675]
[1746789948932,0.26056939,642.15,641.23,0.675]
[1746789949334,0.26056939,642.14,641.23,0.675]
[1746789949632,0.26056939,642.13,641.23,0.675]
[1746789949932,0.26056939,642.12,641.23,0.675]
[1746789950333,0.26056939,642.11,641.22,0.697]
[1746789950734,0.26056939,642.1,641.22,0.697]
[1746789951034,0.26056939,642.09,641.22,0.697]
[1746789951331,0.27138206,642.14,641.22,0.697]
[1746789951635,0.26058814,642.13,641.22,0.697]
[1746789952036,0.26058814,642.12,641.22,0.697]
[1746789952332,0.26058814,642.11,641.22,0.697]
[1746789952636,0.26058814,642.1,641.22,0.697]
[1746789952837,0.26058814,642.1,641.21,0.476]
[1746789953037,0.26058814,642.09,641.21,0.476]
[1746789953438,0.26058814,642.08,641.21,0.476]
[1746789953838,0.26058814,642.07,641.21,0.476]
[1746789954240,0.26058814,642.06,641.21,0.476]
[1746789954540,0.26058814,642.05,641.21,0.476]
[1746789954939,0.26058814,642.04,641.21,0.476]
[1746789955334,0.26058814,642.03,641.21,0.476]
[1746789955739,0.26058814,642.02,641.11,0.58]
[1746789955939,0.26058814,642.01,641.11,0.89195894]
[1746789956446,0.26058814,642.0,641.11,0.89195894]
[1746789956840,2.03512279,641.93,641.11,0.89195894]
[1746789957141,0.26058814,641.92,641.11,0.89195894]
[1746789957541,0.26058814,641.91,641.11,0.89195894]
[1746789957841,0.26058814,641.9,641.11,0.89195894]
[1746789958141,0.26058814,641.89,641.11,0.89195894]
[1746789958643,0.53200618,641.88,641.11,0.89195894]
[1746789959143,0.26058814,641.87,641.11,0.89195894]
[1746789959541,0.26058814,641.86,641.11,0.89195894]
[1746789959944,0.26058814,641.85,641.11,0.89195894]
[1746789960245,0.26058814,641.84,641.11,0.89195894]
[1746789960645,0.26058814,641.83,641.11,0.89195894]
[1746789961045,0.26058814,641.82,641.11,0.89195894]
[1746789961344,0.26058814,641.87,641.11,0.89195894]
[1746789961539,0.2714371,641.81,641.11,0.89195894]
[1746789961844,0.26058814,641.8,641.11,0.89195894]
[1746789964145,0.2714371,641.81,641.11,0.89195894]
[1746789964343,0.26060671,641.8,641.11,0.89195894]
[1746789964545,0.53194857,641.8,641.11,0.89195894]
[1746789964944,0.26060671,641.79,641.11,0.89195894]
[1746789967643,0.27136725,641.78,641.11,0.89195894]
[1746789968143,0.26060671,641.77,641.11,0.89195894]
[1746789968646,0.26060671,641.76,641.11,0.89195894]
[1746789968847,0.26060671,641.75,641.11,0.89195894]
[1746789969148,0.26060671,641.74,641.11,0.89195894]
[1746789969544,0.26060671,641.73,641.11,0.89195894]
[1746789969949,0.26060671,641.77,641.11,0.89195894]
[1746789970244,0.26060671,641.76,641.11,0.89195894]
[1746789970651,0.26060671,641.75,641.11,0.89195894]
[1746789970949,0.26060671,641.74,641.11,0.89195894]
[1746789971254,0.26060671,641.73,641.11,0.89195894]
[1746789971650,0.26060671,641.72,641.11,0.89195894]
[1746789972049,0.26060671,641.71,641.11,0.89195894]
[1746789972451,0.26060671,641.7,641.11,0.89195894]
[1746789972950,0.26060671,641.69,641.11,0.89195894]
[1746789973252,0.26060671,641.68,641.11,0.89195894]
[1746789973556,0.26060671,641.67,641.11,0.89195894]
[1746789973852,0.26060671,641.66,641.11,0.89195894]
[1746789974152,0.27141275,641.68,641.11,0.89195894]
[1746789974153,0.26060671,641.65,641.11,0.89195894]
[1746789974552,2.03512279,641.62,641.11,0.89195894]
[1746789974953,0.26060671,641.61,641.11,0.89195894]
[1746789976853,0.26060671,641.67,641.11,0.89195894]
[1746789982359,0.26060671,641.66,641.11,0.89195894]
[1746789982554,0.53206816,641.66,641.11,0.89195894]
[1746789982752,0.26060671,641.65,641.11,0.89195894]
[1746789983152,0.26060671,641.64,641.11,0.89195894]
[1746789983455,0.26060671,641.63,641.11,0.89195894]
[1746789983757,0.26060671,641.62,641.11,0.89195894]
[1746789984058,0.26060671,641.61,641.11,0.89195894]
[1746789984357,0.26060671,641.6,641.11,0.89195894]
[1746789984753,0.26060671,641.59,641.11,0.89195894]
[1746789985058,0.26060671,641.58,641.11,0.89195894]
[1746789985659,0.26060671,641.57,641.11,0.89195894]
[1746789985960,0.26060671,641.56,641.11,0.89195894]
[1746789986156,0.26060671,641.56,641.11,0.31195894]
[1746789986456,0.26060671,641.55,641.11,0.1547881]
[1746789986658,0.26060671,641.54,641.11,0.1547881]
[1746789986959,0.26060671,641.53,641.11,0.1547881]
[1746789987358,0.26060671,641.52,641.11,0.1547881]
[1746789987761,2.03512279,641.31,641.11,0.1547881]
[1746789988161,0.26060671,641.3,641.11,0.1547881]
[1746789988560,0.27155465,641.29,641.11,0.1547881]
[1746789988956,0.26060671,641.28,641.11,0.1547881]
[1746789989862,0.26060671,641.28,640.98,0.618]
[1746789994664,0.26060671,642.09,640.98,0.618]
[1746789994858,0.27149851,641.27,640.98,0.618]
[1746789995063,0.57209437,642.08,640.98,0.618]
[1746789995260,0.26060671,642.07,640.98,0.618]
[1746789995458,0.27150063,641.26,640.98,0.618]
[1746789995660,0.26060671,642.06,640.98,0.618]
[1746789995864,0.27150063,641.25,640.98,0.618]
[1746789996059,0.26060671,642.05,640.98,0.618]
[1746789996365,0.27149215,641.24,640.98,0.618]
[1746789996674,0.26060671,641.23,640.98,0.618]
[1746789996971,0.5320798,641.23,640.98,0.618]
[1746789997171,0.27147309,641.23,640.98,0.618]
[1746789997368,0.26060671,641.22,640.98,0.618]
[1746789999665,0.27145615,641.21,640.98,0.618]
[1746790000072,0.26060671,641.2,640.98,0.618]
[1746790000768,0.27148898,641.19,640.98,0.618]
[1746790000965,0.53209569,641.19,639.44,0.517]
[1746790001262,0.26060671,641.18,639.44,0.517]
[1746790001572,0.26060671,641.17,639.44,0.517]
[1746790001865,0.26060671,641.16,639.44,0.517]
[1746790002174,0.26060671,641.15,639.44,0.517]
[1746790003066,0.26060671,641.14,639.44,0.517]
[1746790003266,2.03512279,641.77,639.44,0.517]
[1746790003471,0.26112126,641.13,639.44,0.517]
[1746790003867,0.26112126,641.12,639.44,0.517]
[1746790004072,0.26112126,641.11,639.44,0.517]
[1746790004472,0.26112126,641.1,639.44,0.517]
[1746790004874,0.27179643,641.12,639.44,0.517]
[1746790005274,0.26127149,641.11,639.44,0.517]
[1746790005667,0.26127149,641.1,639.44,0.517]
[1746790005878,0.26127149,641.09,639.44,0.517]
[1746790006177,0.26127149,641.09,640.08,0.14439709]
[1746790006373,0.26127149,641.08,640.08,0.14439709]
[1746790006575,0.26127149,641.07,640.08,0.14439709]
[1746790006772,0.26127149,641.06,640.08,0.14439709]
[1746790007076,2.03512279,641.62,640.08,0.14439709]
[1746790007467,0.26146332,641.61,640.08,0.14439709]
[1746790007672,0.26146332,641.6,640.08,0.14439709]
[1746790007973,0.26146332,641.59,640.08,0.14439709]
[1746790008373,0.26146332,641.58,640.08,0.14439709]
[1746790008573,2.03512279,641.31,640.08,0.14439709]
[1746790009078,0.26146332,641.3,640.08,0.14439709]
[1746790009379,0.26146332,641.29,640.08,0.14439709]
[1746790009679,2.03512279,641.31,640.08,0.14439709]
[1746790010071,0.26132706,641.3,640.08,0.14439709]
[1746790010275,0.26132706,641.29,640.08,0.14439709]
[1746790010473,0.26132706,641.28,640.08,0.14439709]
[1746790010973,0.26132706,641.27,640.08,0.14439709]
[1746790011380,0.26132706,641.26,640.08,0.14439709]
[1746790011571,0.26132706,641.25,640.08,0.14439709]
[1746790011876,0.26132706,641.24,640.08,0.14439709]
[1746790012077,0.26132706,641.23,640.08,0.14439709]
[1746790012378,0.26132706,641.22,640.08,0.14439709]
[1746790012581,0.26132706,641.21,640.08,0.14439709]
[1746790012882,0.26132706,641.2,640.08,0.14439709]
[1746790013074,0.26132706,641.19,640.08,0.14439709]
[1746790013381,2.03512279,642.03,640.08,0.14439709]
[1746790013581,0.26093139,642.02,640.08,0.14439709]
[1746790013780,0.26093139,642.01,640.08,0.14439709]
[1746790015182,0.26093139,642.0,640.08,0.14439709]
[1746790015682,0.26093139,641.99,640.08,0.14439709]
[1746790016181,0.31148766,642.08,640.08,0.14439709]
[1746790016487,0.2611523,642.07,640.08,0.14439709]
[1746790016781,0.2611523,642.06,640.08,0.14439709]
[1746790017090,0.2611523,642.05,640.08,0.14439709]
[1746790017386,0.2611523,642.04,640.08,0.14439709]
[1746790017689,0.2611523,642.03,640.08,0.14439709]
[1746790017981,0.2611523,642.02,640.08,0.14439709]
[1746790018486,0.2611523,642.01,640.08,0.14439709]
[1746790018789,0.2611523,642.0,640.08,0.14439709]
[1746790019086,0.2611523,641.99,640.08,0.14439709]
[1746790019387,0.2611523,641.98,640.08,0.14439709]
[1746790019688,2.03512279,641.6,640.08,0.14439709]
[1746790020089,0.2611523,641.59,640.08,0.14439709]
[1746790021290,0.2611523,641.59,640.09,0.31245606]
[1746790021590,0.2611523,641.58,640.09,0.31245606]
[1746790021990,0.2611523,641.57,640.09,0.31245606]
[1746790022385,0.2611523,641.56,640.09,0.31245606]
[1746790022891,0.2611523,641.55,640.09,0.31245606]
[1746790023192,0.2611523,641.54,640.09,0.31245606]
[1746790023697,0.2611523,641.53,640.03,0.477]
[1746790024592,0.2611523,641.52,640.03,0.477]
[1746790024792,0.2611523,641.51,640.03,0.00886592]
[1746790025194,0.2611523,641.5,640.03,0.00886592]
[1746790025694,0.2611523,641.49,640.03,0.00886592]
[1746790025887,0.2611523,641.48,640.03,0.00886592]
[1746790026289,0.2611523,641.47,640.03,0.00886592]
[1746790026894,0.2611523,641.46,640.03,0.00886592]
[1746790027092,0.2611523,641.45,640.03,0.00886592]
[1746790027395,0.2611523,641.44,640.03,0.00886592]
[1746790027791,0.2611523,641.43,640.03,0.00886592]
[1746790027997,1.12588497,641.42,639.78,0.597]
[1746790028196,1.12588497,641.41,636.54,0.61781609]
[1746790028397,1.12588497,641.4,638.93,0.31302333]
[1746790028598,1.38703727,641.39,638.93,0.31302333]
[1746790028897,1.38703727,641.38,638.93,0.31302333]
[1746790029098,0.2611523,641.38,638.93,0.31302333]
[1746790029399,0.2611523,641.37,638.93,0.31302333]
[1746790029798,0.2611523,641.36,638.93,0.31302333]
[1746790030097,0.2611523,641.35,638.93,0.31302333]
[1746790030397,0.2611523,641.34,638.93,0.31302333]
[1746790030598,0.2611523,641.33,638.93,0.31302333]
[1746790030793,0.2611523,641.33,638.93,0.82402333]
[1746790031097,0.2611523,641.32,638.93,0.82402333]
[1746790031292,0.2611523,641.31,638.93,0.82402333]
[1746790031599,0.2611523,641.3,638.93,0.82402333]
[1746790031797,0.2611523,641.29,638.93,0.82402333]
[1746790032093,0.2611523,641.28,638.93,0.82402333]
[1746790032299,0.2611523,641.28,638.93,1.28802333]
[1746790032501,0.2611523,641.27,638.93,1.28802333]
[1746790032899,0.2611523,641.26,638.93,1.28802333]
[1746790033196,0.2611523,641.25,638.93,1.28802333]
[1746790033500,0.2611523,641.24,638.93,1.28802333]
[1746790034303,0.2611523,641.23,638.93,1.28802333]
[1746790035698,0.2611523,641.22,638.93,1.28802333]
[1746790036203,2.03512279,640.53,638.93,1.28802333]
[1746790036703,0.2611523,640.52,638.93,1.28802333]
[1746790038897,0.2611523,640.97,638.93,1.28802333]
[1746790039099,0.2611523,640.96,638.93,1.28802333]
[1746790039297,2.03512279,640.98,638.93,1.28802333]
[1746790039298,0.2611523,640.95,638.93,1.28802333]
[1746790039507,0.2611523,640.94,638.93,1.28802333]
[1746790039807,0.2611523,640.93,638.93,1.28802333]
[1746790040003,0.2611523,640.97,638.93,1.28802333]
[1746790040202,0.2611523,640.96,638.93,1.28802333]
[1746790040400,0.2611523,640.95,638.93,1.28802333]
[1746790040706,0.2611523,640.94,638.93,1.28802333]
[1746790041005,0.2611523,640.93,638.93,1.28802333]
[1746790041399,0.2611523,640.92,638.93,1.28802333]
[1746790041604,0.2611523,640.91,638.93,1.28802333]
[1746790041808,0.2611523,640.9,638.93,1.28802333]
[1746790042000,2.03512279,640.77,638.93,1.28802333]
[1746790042301,0.2611523,640.76,638.93,1.28802333]
[1746790042505,0.2611523,640.75,638.93,1.28802333]
[1746790042709,0.2611523,640.74,638.93,1.28802333]
[1746790043007,0.2611523,640.73,638.93,1.28802333]
[1746790043200,0.2611523,640.72,638.93,1.28802333]
[1746790043601,0.2611523,640.76,638.93,1.28802333]
[1746790043802,0.2611523,640.71,638.93,1.28802333]
[1746790044004,0.2611523,640.7,638.93,1.28802333]
[1746790044206,0.2611523,640.75,638.93,1.28802333]
[1746790044710,2.03512279,640.76,638.93,1.28802333]
[1746790045104,0.26109273,640.75,638.93,1.28802333]
[1746790045307,0.26109273,640.74,638.93,1.28802333]
[1746790045508,0.26109273,640.73,638.93,1.28802333]
[1746790045807,0.26109273,640.72,638.93,1.28802333]
[1746790046007,0.26109273,640.71,638.93,1.28802333]
[1746790046206,0.26109273,640.7,638.93,1.28802333]
[1746790046509,0.26109273,640.69,638.93,1.28802333]
[1746790046704,0.26109273,641.25,638.93,1.28802333]
[1746790046908,0.26109273,641.24,638.93,1.28802333]
[1746790047108,0.26109273,641.23,638.93,1.28802333]
[1746790047313,0.26109273,641.22,638.93,1.28802333]
[1746790047610,0.26109273,641.21,638.93,1.28802333]
[1746790047909,0.26109273,641.2,638.93,1.28802333]
[1746790048212,2.03512279,641.26,638.93,1.28802333]
[1746790048410,0.26117697,641.25,638.93,1.28802333]
[1746790048605,0.26117697,641.24,638.93,1.28802333]
[1746790048805,0.26117697,641.23,638.93,1.28802333]
[1746790049009,2.03512279,641.0,638.93,1.28802333]
[1746790049209,0.26117697,640.99,638.93,1.28802333]
[1746790049606,0.26117697,640.98,638.93,1.28802333]
[1746790049809,2.03512279,641.0,638.93,1.28802333]
[1746790050006,0.2611816,640.99,638.93,1.28802333]
[1746790050315,0.2611816,640.98,638.93,1.28802333]
[1746790050710,0.2611816,640.97,638.93,1.28802333]
[1746790051108,2.03512279,640.78,638.93,1.28802333]
[1746790051613,0.2611816,640.77,638.93,1.28802333]
[1746790051912,0.2611816,640.76,638.93,1.28802333]
[1746790052323,0.2611816,640.75,638.93,1.28802333]
[1746790052615,2.03512279,640.78,638.93,2.00502333]
[1746790053012,0.26158404,640.77,638.93,2.00502333]
[1746790053412,0.26158404,640.76,638.93,2.00502333]
[1746790053714,0.26158404,640.75,638.93,2.00502333]
[1746790053912,0.26158404,640.74,638.93,1.692]
[1746790054115,2.03512279,640.69,638.93,1.692]
[1746790054508,0.26158404,640.68,638.93,1.692]
[1746790055008,0.26158404,640.67,638.93,1.692]
[1746790055214,0.26158404,640.66,638.93,1.692]
[1746790055711,0.26158404,640.65,638.93,1.692]
[1746790056013,0.26158404,640.64,638.93,1.692]
[1746790056308,0.26158404,640.63,638.93,1.692]
[1746790056516,0.26158404,640.62,638.93,1.692]
[1746790056815,2.03512279,640.47,638.93,1.692]
[1746790057215,0.26158404,640.46,638.93,1.692]
[1746790057509,0.26158404,640.45,638.93,1.692]
[1746790057814,0.26158404,640.44,638.93,1.692]
[1746790058114,0.26158404,640.43,638.93,1.692]
[1746790058414,0.26158404,640.42,638.93,1.228]